Cogmind - Beta 9.6 @@@ ROGUE MODE // 2020.07.31 @ 13:35:10 // Winter2019/RPGLIKE Player: Hermelin Result: Destroyed by DAS Turret with DAS Cannon Performance ------------- Evolutions (0) 0 Regions Visited (3) 600 Robots Destroyed (49) 245 Value Destroyed (898) 898 Prototype IDs (26) 520 Alien Tech Used (0) 0 Bonus (-90) -90 TOTAL SCORE: 2173 Bonus ------- Aligned with FarCom 300 Friendly Fire -390 Cogmind --------- Core Integrity 0/900 Matter 300/300 Energy 150/150 System Corruption 0% Temperature Cool (0) Movement Walking (180) Ox2 Location -10/Exiles Parts ------- > --- POWER (1) -------- Light Neutrino Core > --- PROPULSION (2) --- Aluminum Leg Aluminum Leg > --- UTILITY (4) ------ Improved Terrain Scanner Salvage Targeting Computer Salvage Targeting Computer Targeting Computer > --- WEAPON (3) ------- AWS/Autocannon > --- INVENTORY (2) ---- Advanced Recalibrator Makeshift Axe Peak State ------------ > --- POWER ------------ Light Neutrino Core > --- PROPULSION ------- Aluminum Leg Aluminum Leg > --- UTILITY ---------- Improved Terrain Scanner Salvage Targeting Computer Salvage Targeting Computer Targeting Computer > --- WEAPON ----------- AWS/Autocannon > --- INVENTORY -------- Advanced Recalibrator Makeshift Axe [Rating: 47] Favorites ----------- Power Light Nuclear Core Engine Light Ion Engine Power Core Light Nuclear Core Propulsion Aluminum Leg Leg Aluminum Leg Wheel Wheel Hover Unit Hover Unit Utility Salvage Targeting Computer Device Improved Terrain Scanner Processor Salvage Targeting Computer Weapon Assault Rifle Ballistic Gun Assault Rifle Ballistic Cannon AWS/Autocannon Launcher Grenade Launcher Build | -11 -10 -10 -10 ------- Run | Scr Mat Min Exi Slots Evolved 6 | 3 1 2 . Power . | . . . . Propulsion 1 | 1 . . . Utility 3 | 1 1 1 . Weapon 2 | 1 . 1 . Parts Attached 28 | 7 8 9 4 Power 5 | 1 1 2 1 Engine 3 | 1 1 1 . Core 2 | . . 1 1 Reactor . | . . . . Propulsion 7 | 2 2 3 . Treads . | . . . . Leg 3 | . . 3 . Wheel 2 | 2 . . . Hover 2 | . 2 . . Flight . | . . . . Utility 5 | 2 2 1 . Device 1 | 1 . . . Storage . | . . . . Processor 4 | 1 2 1 . Hackware . | . . . . Protection . | . . . . Artifact . | . . . . Weapon 11 | 2 3 3 3 Energy Gun . | . . . . Energy Cannon . | . . . . Ballistic Gun 6 | 2 3 1 . Ballistic Cannon 2 | . . . 2 Launcher 3 | . . 2 1 Special Weapon . | . . . . Impact Weapon . | . . . . Slashing Weapon . | . . . . Piercing Weapon . | . . . . Special Melee Weapon . | . . . . Unidentified Prototypes 1 | . . . 1 Parts Lost . | . . . . Power . | . . . . Propulsion . | . . . . Utility . | . . . . Weapon . | . . . . Highest Loss Streak . | . . . . Average Slot Usage (%) 95 | . 96 99 89 Engine 6 | . 12 4 . Core 5 | . . 6 9 Leg 11 | . . 15 20 Hover 8 | . 20 4 . Device 11 | . 12 10 10 Processor 26 | . 19 29 30 Ballistic Gun 19 | . 26 19 10 Launcher 4 | . . 9 5 Naked Turns . | . . . . Heaviest Build 69 | 9 9 13 69 Greatest Support 26 | 26 26 25 25 Greatest Overweight (x) 2 | . . 1 2 Average Overweight (x) . | . . . . Largest Inventory Capacity 2 | 2 2 2 2 Average Capacity 1 | 1 2 2 2 Most Carried 2 | 2 2 2 2 Average Carried 1 | 1 1 1 1 Final Capacity 2 | 2 2 2 2 Final Carried 2 | 2 2 2 2 Class Distribution -------------------- 48% | Scavenger-Mutant 41% | Mutant 9% | Scavenger-Gunner Dominant Class ---------------- Mutant | -10/Materials Scavenger-Mutant | -10/Mines Scavenger-Mutant | -10/Exiles Resources | -11 -10 -10 -10 ----------- Run | Scr Mat Min Exi Matter Collected 1046 | 204 448 334 60 Remotely . | . . . . Salvage Created 1002 | 14 732 250 6 Parts 69 | 5 49 15 . Haulers Intercepted 2 | . 2 . . Recyclers Shooed . | . . . . Parts Field Recycled . | . . . . Retrieved Matter . | . . . . Parts Self-Destructed . | . . . . Prevented . | . . . . Kills | -11 -10 -10 -10 ------- Run | Scr Mat Min Exi Combat Hostiles Destroyed 39 | . 13 19 7 Guns 21 | . 13 8 . Cannons 3 | . . . 3 AOE 15 | . . 11 4 Classes Destroyed 9 | 1 4 4 . Tunneler 2 | 1 . 1 . Hauler 2 | . 2 . . Recycler 1 | . . 1 . Operator 2 | . 2 . . Watcher 2 | . 2 . . Swarmer 3 | . . 3 . Grunt 17 | . 13 4 . Demolisher 2 | . . 2 . Assembled 17 | . . 10 7 Best Kill Streak 13 | 1 3 13 6 Combat Bots Only 13 | . 3 13 6 Max Kills in Single Turn 4 | 1 1 4 4 Gunslinging . | . . . . Exploded 4 | . . 4 4 Melee . | . . . . Uniques/NPCs Destroyed 1 | . . . 1 8R-AWN (-10/Exiles) Combat | -11 -10 -10 -10 -------- Run | Scr Mat Min Exi Damage Taken 2080 | . 348 874 858 Core 1678 | . 286 698 694 Absorbed by Shields . | . . . . Redirected to Core 1404 | . 212 608 584 Core Remaining (%) 100 | 100 . . . Volleys Fired 108 | 1 67 38 2 Largest 2 | 2 2 2 1 Hottest 40 | 40 40 40 30 Shots Fired 223 | 2 134 58 29 Gun 184 | 2 134 48 . Cannon 27 | . . . 27 Launcher 12 | . . 10 2 Special . | . . . . Kinetic 211 | 2 134 48 27 Thermal . | . . . . Explosive 12 | . . 10 2 Electromagnetic . | . . . . Robot Hit Streak 18 | 1 18 9 17 Robot Miss Streak 8 | . 8 3 2 Penetration Max . | . . . . Secondary Targets 2 | . 1 1 . Max Gunslinging Chain 1 | . 1 1 . Autonomous 27 | . . . 27 Shots Hit Robots 148 | 1 83 39 25 Core Hits 93 | 1 39 35 18 Critical Hits 3 | . 1 1 1 Critical Kills 1 | . . 1 . Critical Parts Destroyed 2 | . 1 . 1 Melee Attacks . | . . . . Impact . | . . . . Slashing . | . . . . Piercing . | . . . . Sneak Attacks . | . . . . Combat Hostiles . | . . . . Follow-up Attacks . | . . . . Damage Inflicted 5013 | 13 1079 1424 2497 Guns 1432 | 13 1006 413 . Cannons 2156 | . . . 2156 Explosions 1425 | . 73 1011 341 Melee . | . . . . Ramming . | . . . . Kinetic 3588 | 13 1006 413 2156 Thermal . | . . . . Explosive 1352 | . . 1011 341 Electromagnetic 73 | . 73 . . Impact . | . . . . Slashing . | . . . . Piercing . | . . . . Highest Corruption . | . . . . Average Corruption . | . . . . Corruption Purged . | . . . . Overload Shots . | . . . . Overflow Damage 156 | . . 47 109 Projectiles 109 | . . . 109 Explosions 47 | . . 47 . Melee . | . . . . Knockbacks 3 | . . . 3 Impact . | . . . . Kinetic 3 | . . . 3 Secondary . | . . . . Self-Inflicted Damage 93 | . . 93 . Shots 4 | . . 4 . Rammed . | . . . . Targets Rammed . | . . . . Kicked . | . . . . Crushed . | . . . . Highest Temperature 28 | . 23 28 . Average Temperature 6 | . 5 15 . Received Heat Transfer 352 | . 201 151 . Siege Activations . | . . . . Robots Corrupted . | . . . . Combat Hostiles . | . . . . Parts Fried . | . . . . Impact Corruptions . | . . . . Robots Melted . | . . . . Combat Hostiles . | . . . . Parts Melted . | . . . . Heat Transferred . | . . . . Parts Sabotaged . | . . . . Parts Stolen . | . . . . Parts Stripped . | . . . . Power Chain Reactions . | . . . . Missiles Intercepted . | . . . . Alert | -11 -10 -10 -10 ------- Run | Scr Mat Min Exi Peak Influence 324 | 5 324 263 . Average Influence 100 | 1 99 107 . Maximum Alert Level 1 | . 1 1 . Low Security (%) 83 | 100 89 75 . Level 1 16 | . 10 24 . Level 2 . | . . . . Level 3 . | . . . . Level 4 . | . . . . Level 5 . | . . . . High Security . | . . . . Max Security . | . . . . Squads Dispatched 3 | . 3 . . Investigation 2 | . 2 . . Extermination . | . . . . Reinforcement 1 | . 1 . . Assault . | . . . . Garrison . | . . . . Intercept . | . . . . Construction Impeded . | . . . . Haulers Reinforced . | . . . . Stealth | -11 -10 -10 -10 --------- Run | Scr Mat Min Exi Distress Signals . | . . . . Communications Jammed . | . . . . Distress Signals . | . . . . Times Spotted 54 | . 27 20 7 Peak Tracking Total 11 | . 5 11 8 Tactical Retreats 4 | . 3 . 1 Traps | -11 -10 -10 -10 ------- Run | Scr Mat Min Exi Traps Triggered 1 | . 1 . . Indirectly . | . . . . Trap Hack Attempts . | . . . . Triggered . | . . . . Disarmed . | . . . . Reprogrammed . | . . . . Reused . | . . . . Traps Extracted . | . . . . Installed . | . . . . Triggered . | . . . . Machines | -11 -10 -10 -10 ---------- Run | Scr Mat Min Exi Machines Disabled 7 | . 2 1 4 Max in Single Turn 2 | . 1 1 2 Machines Sabotaged . | . . . . Garrisons Compromised . | . . . . Overloaded Fab Kills . | . . . . Fab Network Shutdowns . | . . . . Hacking | -11 -10 -10 -10 --------- Run | Scr Mat Min Exi Machines Accessed 10 | . 9 . 1 Terminals 7 | . 7 . . Fabricators . | . . . . Repair Stations . | . . . . Recycling Units 2 | . 2 . . Scanalyzers . | . . . . Garrison Access . | . . . . Total Hacks 47 | . 46 . 1 Successful 24 | . 23 . 1 Failed 22 | . 22 . . Catastrophic . | . . . . Database Lockouts 1 | . 1 . . Manual 29 | . 27 . 2 Terminals 42 | . 42 . . Fabricators . | . . . . Repair Stations . | . . . . Recycling Units 4 | . 4 . . Scanalyzers . | . . . . Garrison Access . | . . . . Terminal Hacks 16 | . 15 . 1 Robot Analysis 4 | . 4 . . Prototype ID Bank 2 | . 2 . . Branch Access Points 1 | . 1 . . Terminal Index 1 | . 1 . . Recycling Unit Index 1 | . 1 . . Alert Level 1 | . 1 . . Unreport Threat 2 | . 2 . . Registered Components 1 | . 1 . . Zone Layout 2 | . 2 . . EX-Prototype ID Bank 1 | . . . 1 Fabricator Hacks . | . . . . Repair Station Hacks . | . . . . Recycling Unit Hacks 2 | . 2 . . Report Inventory 1 | . 1 . . Retrieve Components 1 | . 1 . . Scanalyzer . | . . . . Garrison Access Hacks . | . . . . Unauthorized Hacks 6 | . 6 . . Terminals 4 | . 4 . . Botnet 4 | . 4 . . Fabricators . | . . . . Repair Stations . | . . . . Recycling Units 2 | . 2 . . Reject 2 | . 2 . . Scanalyzers . | . . . . Garrison Access . | . . . . Data Cores Recovered 1 | . 1 . . Used . | . . . . Hacking Detections 7 | . 7 . . Full Trace Events 2 | . 2 . . Feedback Events . | . . . . Feedback Blocked . | . . . . Robot Schematics Acquired . | . . . . Robots Built . | . . . . Matter . | . . . . Time . | . . . . Total Robot Build Rating . | . . . . Part Schematics Acquired . | . . . . Parts Built . | . . . . Matter . | . . . . Time . | . . . . Total Part Build Rating . | . . . . Parts Repaired . | . . . . Time . | . . . . Parts Recycled . | . . . . Recycled Matter . | . . . . Retrieved Matter . | . . . . Retrieved Components 8 | . 8 . . Parts Scanalyzed . | . . . . Part Schematics Acquired . | . . . . Parts Damaged . | . . . . Bothacking | -11 -10 -10 -10 ------------ Run | Scr Mat Min Exi Used RIF Installer . | . . . . Robots Hacked . | . . . . Non-combat . | . . . . Combat . | . . . . Robot Hacks Applied . | . . . . Relay Couplers Released . | . . . . Robots Rewired . | . . . . Allies Hacked . | . . . . Hacks Repelled . | . . . . Allies | -11 -10 -10 -10 -------- Run | Scr Mat Min Exi Total Allies . | . . . . Largest Group . | . . . . Highest-Rated Group . | . . . . Highest-Rated Ally . | . . . . Total Orders . | . . . . Ally Attacks . | . . . . Total Damage . | . . . . Kills . | . . . . Allies Corrupted . | . . . . Allies Melted . | . . . . Intel | -11 -10 -10 -10 ------- Run | Scr Mat Min Exi Robot Analysis Total 4 | . 4 . . Derelict Logs Recovered 2 | . . 2 . Drone Launches . | . . . . Drone Recoveries . | . . . . Exploration | -11 -10 -10 -10 ------------- Run | Scr Mat Min Exi Turns Passed 2672 | 60 920 930 762 Spaces Moved 2169 | 51 941 701 476 Core 3 | 2 . 1 . Treads . | . . . . Legs 1020 | . . 544 476 Wheels 122 | 49 73 . . Hover 1024 | . 868 156 . Flight . | . . . . Fastest Speed 50 | 50 56 56 120 Average Speed 91 | 87 59 105 134 Slowest Speed 180 | 90 90 120 180 Overloaded Moves . | . . . . Propulsion Burnouts . | . . . . Robots Hopped . | . . . . Cave-ins Triggered . | . . . . Exploration Rate (%) 62 | 5 97 98 48 Regions Visited 3 Branch Regions 2 Pre-discovered Areas 1 | . . 1 . Known Exits Taken 1 | . 1 . . Unknown Exits Taken 2 | 1 . 1 . Scrap Searched 1 | . . 1 . Spaces Dug . | . . . . Terrain Destroyed 66 | . . 56 10 Melee . | . . . . Projectile 1 | . . . 1 AOE 65 | . . 56 9 Actions | -11 -10 -10 -10 --------- Run | Scr Mat Min Exi Total 2674 | 60 1180 831 603 Wait 279 | . 135 55 89 Move 2166 | 50 940 700 476 Hop . | . . . . Pick Up 20 | 2 2 3 13 Fast Attach 20 | 7 6 3 4 Attach 2 | . . 2 . Detach . | . . . . Swap 6 | . 2 4 . Drop 33 | . 8 6 19 Fire 108 | 1 67 38 2 Melee . | . . . . Ram . | . . . . Kick . | . . . . Crush . | . . . . Escape Stasis . | . . . . Rewire . | . . . . Trap . | . . . . Miscellaneous 40 | . 20 20 . Route ------- -11/Scrapyard -10/Materials (discovered 5 exits: [*Mat x3] / *Min x2) -10/Mines (discovered 3 exits: [*Mat x2] / *Exi) -10/Exiles History --------- Turn | Location | Event 6 | -11/Scrapyard | Upgraded with Propulsion slot (x1) 6 | -11/Scrapyard | Upgraded with Utility slot (x1) 6 | -11/Scrapyard | Upgraded with Weapon slot (x1) 10 | -11/Scrapyard | Discovered new exit (range 17) 61 | -11/Scrapyard | Entered Materials 72 | -10/Materials | Discovered new exit (range 14) 220 | -10/Materials | Discovered new exit (range 14) 311 | -10/Materials | Build established: Mutant 387 | -10/Materials | Central database locked down 451 | -10/Materials | Reached level 2 491 | -10/Materials | Upgraded with Utility slot (x1) 506 | -10/Materials | Discovered new exit (range 17) 539 | -10/Materials | Identified exit to Mines 725 | -10/Materials | Discovered new exit (range 14) 981 | -10/Materials | Entered Mines 982 | -10/Mines | Assembled infested the area 987 | -10/Mines | Assisted by a Guerilla fighting off Assembled 1012 | -10/Mines | Discovered new exit (range 14) 1050 | -10/Mines | Destroyed 13 combat bots 1077 | -10/Mines | Core integrity fell below 50% 1084 | -10/Mines | Reached level 3 1087 | -10/Mines | Upgraded with Utility slot (x1) 1087 | -10/Mines | Upgraded with Weapon slot (x1) 1122 | -10/Mines | Discovered new exit (range 16) 1147 | -10/Mines | Core integrity fell below 20% 1392 | -10/Mines | Learned Materials garrison access intel 1405 | -10/Mines | Discovered new exit (range 12) 1421 | -10/Mines | Build established: Scavenger-Mutant 1466 | -10/Mines | A weapon hastily lodged in a ceiling crevice suddenly fell to the ground 1823 | -10/Mines | Learned location of Zion (-6) 1905 | -10/Mines | Deemed a non-threat by the Exiles lab entrance 1911 | -10/Mines | Entered Exiles 2001 | -10/Exiles | Met 8R-AWN 2023 | -10/Exiles | Met EX-HEX 2069 | -10/Exiles | Met EX-BIN 2194 | -10/Exiles | Aligned with FarCom system 2195 | -10/Exiles | Given EX-Vault access code 2224 | -10/Exiles | Opened EX-Vault 2254 | -10/Exiles | Warned to stay clear of 0b10 Research branches 2376 | -10/Exiles | Found AWS/Autocannon 2527 | -10/Exiles | Attacked by the Exiles 2583 | -10/Exiles | Destroyed 8R-AWN 2673 | -10/Exiles | Destroyed by DAS Turret with DAS Cannon Last Messages --------------- 02578_ Penetrated by HV Slug. 02578_ HV Slug penetrates Earth. 02578_ Penetrated by HV Slug. 02578_ HV Slug penetrates Earth. 02579_ 8R-AWN suffers critical hit. 02579_ Destroyed Rnf. Fission Core. 02581_ Penetrated by HV Slug. 02581_ HV Slug penetrates Earth. 02581_ Penetrated by HV Slug. 02581_ HV Slug penetrates Earth. 02581_ Destroyed Prototype Device. 02581_ Destroyed Prototype Ballistic Gun. 02583_ 8R-AWN destroyed. 02609_ Dropped Lgt. Nuclear Core. 02610_ Acquired Prototype Power Core. 02610_ Identified Lgt. Neutrino Core. 02613_ Acquired 10 matter. 02615_ Dropped Assault Rifle. 02623_ Acquired Adv. Recalibrator. 02626_ Acquired Mak. Axe. Map ----- +----------------------------------------------------+ | ???????????????"##########" """ # """#### | | ??????????????""##########" """""""""# """#### | | ???????????????"#?########" ########### """#### | | ????????????? #?#########"" ################### | | ??????????????##########"" ################### | | ??????????????#"###""""""" ################### | | ?????????????? """""" " "" #########"######## | | ????????????? "" """ " #####"""" """"### | | ??????????????? " " " """ """"## | | ?????????????? "" " # | | ?????????????? " """# | | ?????????????? "# | | ??????????????? " "# | | ??????????????? " | | ??????????????? """""" | | ???????????????? ######""" | | ?????????????? ? ""###?#######""" | | ???????????? ???"""#####?#######""" ! | | ??????????? "?"##############"""" * | | ??????????? ?"#?############"" | | ??????????? #?############"""" | | ?????????? ##aaa####""" | | ?????????? """" | | ????????? | | ????????? | | ????????? @ | | ????????? " "" """ | | ????????? ""## ##""" " " ""#" % % | | ?????????? ""##?# ######""" """##""" | | ?????????? """"#?### #?#?####""""##### # | | ??????????? """##### ##?################## | | ??????????? ??? ???###?! "??##??############# | | ??????????? ??? ?????????#" ###??##?########## | | ?????????????? ??? #??#??#" ?#?#???##?######### | | ????????????????????#????#!!""!"###?###?####?#?### | | ???????????????????#??#?###########?####?##?##??#? | | ??????????????????#?#?#?#?#######??###?####?#####? | | ???????????????? ?#????#?#?###??#####??###??#?#??? | | ?????????????????????????##?####??#?#####??####??? | | ????????????????????????##????#????##?###????????? | | ???????????????????????##?????#?#?#??##?#????????? | | ??????????????????????????????????##???#?????????? | | ?????????????????????????????????????????????????? | | ?????????????????????????????????????????????????? | | ?????????????????????????????????????????????????? | | ?????????????????????????????????????????????????? | | ?????????????????????????????????????????????????? | | ?????????????????????????????????????????????????? | | ?????????????????????????????????????????????????? | | ?????????????????????????????????????????????????? | +----------------------------------------------------+ Best States ------------- Heat Dissipation 31 Energy Generation 19 Energy Capacity 250 Matter Stores 300 Matter Capacity 300 Sight Range 17 Terrain Scan Range 16 Terrain Scan Density 360 Evasion (%) 53 Targeting Accuracy 5 Salvage Targeting 2 Defensive Hacking 5 Item Schematics ----------------- None Robot Schematics ------------------ None Fabricated ------------ Nothing Alien Tech Used ----------------- None Achievements -------------- None Challenges ------------ None RPGLIKE | -11 -10 -10 -10 --------- Run | Scr Mat Min Exi Levels Raised 2 | . 1 1 . XP Earned 6975 | 3000 1950 1675 350 XP Spent 5970 | 2350 1370 1950 300 Upgrades 21 | 6 6 3 6 Propulsion Slot 1 | 1 . . . Utility Slot 3 | 1 1 1 . Weapon Slot 2 | 1 . 1 . Core Integrity 6 | . . . 6 Heat Dissipation 1 | . . 1 . Mass Support 1 | . 1 . . Inventory Capacity 2 | 2 . . . Sight Range 1 | 1 . . . Terrain Scan Density 3 | . 3 . . Hack Defense % 1 | . 1 . . Protomatter Created 275 | . 157 118 . Integrity Restored 863 | . 389 474 . Core 751 | . 277 474 . Parts 112 | . 112 . . Protomatter Decayed 34 | . 22 12 . Game ------ Seed AlertRegenerativeClaw Manual? 0 Play Time 00:31:26 Cumulative 127.6 hours Start 2020.07.31 @ 12:54:56 End 2020.07.31 @ 13:35:10 Sessions 1 Manual Loads 0 Difficulty Rogue Special Mode Winter2019/RPGLIKE Game No. 53 Rogue 53 Adventurer 0 Explorer 0 Win Type - Total 2 Types 1/0/0/1/0/0/0 Lore% 75 Gallery% 66 Achievement% 64 Wizard Run 0 Options --------- ASCII 0 Keyboard 0 Movement Numpad Keybinds 0 Fullscreen 1 Font 14/SmallcapsGlow Map View 84x54 Tactical HUD 1 Map Filters NONE Filters NONE Steam 1 RUN: 0ca0bd2b-6ea9-437c-8572-16b7228d9819